bitfinex/quotes_BTCUSD_20240827
["timestamp","ask_amount","ask_price","bid_price","bid_amount"]
[1724757597430,3.49724884,62587.0,62586.0,0.000824]
[1724757597789,3.65841029,62587.0,62586.0,0.000824]
[1724757598149,3.65841029,62587.0,62586.0,1e-06]
[1724757598556,3.65841019,62587.0,62586.0,1e-06]
[1724757599036,3.49724884,62587.0,62586.0,1e-06]
[1724757600446,3.65838941,62587.0,62586.0,1e-06]
[1724757600695,3.49724884,62587.0,62586.0,1e-06]
[1724757600908,3.49724884,62587.0,62585.0,1e-06]
[1724757600909,2.39284,62586.0,62585.0,1e-06]
[1724757601139,2.67475809,62586.0,62585.0,1e-06]
[1724757601351,3.37475809,62586.0,62585.0,1e-06]
[1724757601791,3.18558359,62586.0,62585.0,1e-06]
[1724757602011,3.02444,62586.0,62585.0,1e-06]
[1724757602219,3.03844,62586.0,62585.0,0.001001]
[1724757602860,3.05244,62586.0,62585.0,0.001001]
[1724757603082,3.21135809,62586.0,62585.0,0.001001]
[1724757603297,3.23435809,62586.0,62585.0,0.001001]
[1724757604816,3.15115809,62586.0,62585.0,0.001001]
[1724757605470,3.29441211,62586.0,62585.0,0.001001]
[1724757605685,3.15115809,62586.0,62585.0,0.001001]
[1724757605892,3.29421982,62586.0,62585.0,0.001001]
[1724757606567,3.1509658,62586.0,62585.0,0.001001]
[1724757607205,3.29426726,62586.0,62585.0,0.001001]
[1724757607653,3.1509658,62586.0,62585.0,0.001001]
[1724757609369,3.0888658,62586.0,62585.0,0.001001]
[1724757610756,3.0658658,62586.0,62585.0,0.001001]
[1724757611624,3.22705738,62586.0,62585.0,0.001001]
[1724757611870,3.0658658,62586.0,62585.0,0.001001]
[1724757612087,3.22705738,62586.0,62585.0,0.001001]
[1724757612768,3.22732629,62586.0,62585.0,0.001001]
[1724757612989,3.0658658,62586.0,62585.0,0.001001]
[1724757614088,3.15363294,62586.0,62585.0,0.001001]
[1724757614745,3.31513192,62586.0,62585.0,0.001001]
[1724757616282,3.15363294,62586.0,62585.0,0.001001]
[1724757618069,3.0658658,62586.0,62585.0,0.001001]
[1724757620694,3.0909157,62586.0,62585.0,0.001001]
[1724757622139,3.0909157,62586.0,62585.0,1e-06]
[1724757622140,3.6261157,62586.0,62585.0,1e-06]
[1724757625137,3.5446157,62586.0,62585.0,1e-06]
[1724757628169,3.4823157,62586.0,62585.0,1e-06]
[1724757628862,2.29087761,62586.0,62585.0,0.147201]
[1724757629092,2.26582771,62586.0,62585.0,0.147201]
[1724757629335,1.99008085,62586.0,62585.0,0.147201]
[1724757629567,1.84626771,62586.0,62585.0,0.147201]
[1724757630061,1.83226771,62586.0,62585.0,0.1472]
[1724757630307,1.87000298,62586.0,62585.0,0.1472]
[1724757630551,1.98300298,62586.0,62585.0,0.1472]
[1724757631004,1.96900298,62586.0,62585.0,0.1472]
[1724757631276,1.98000298,62586.0,62585.0,0.1472]
[1724757631518,1.98000298,62586.0,62585.0,0.148023]
[1724757631519,2.06211473,62586.0,62585.0,0.148023]
[1724757631748,1.94226771,62586.0,62585.0,0.148023]
[1724757631977,1.24317301,62586.0,62585.0,0.148023]
[1724757632442,1.36297121,62586.0,62585.0,0.148023]
[1724757633125,1.33901148,62586.0,62585.0,0.148023]
[1724757633361,1.3640237,62586.0,62585.0,0.148023]
[1724757633582,1.31502851,62586.0,62585.0,0.148023]
[1724757633841,1.24317301,62586.0,62585.0,0.148023]
[1724757634327,1.31500899,62586.0,62585.0,0.148023]
[1724757635002,1.24317301,62586.0,62585.0,0.148023]
[1724757635222,1.31500672,62586.0,62585.0,0.148023]
[1724757635476,1.29105086,62586.0,62585.0,0.148023]
[1724757635686,1.24317301,62586.0,62585.0,0.148023]
[1724757635904,1.31500672,62586.0,62585.0,0.148023]
[1724757636355,1.24317301,62586.0,62585.0,0.148023]
[1724757636808,1.2682149,62586.0,62585.0,0.148023]
[1724757637262,1.31607568,62586.0,62585.0,0.148023]
[1724757637501,1.47499377,62586.0,62585.0,0.148023]
[1724757637733,1.47799377,62586.0,62585.0,0.148023]
[1724757639131,1.47499377,62586.0,62585.0,0.148023]
[1724757639348,1.42713299,62586.0,62585.0,0.148023]
[1724757642876,1.2682149,62586.0,62585.0,0.148023]
[1724757644258,1.24317301,62586.0,62585.0,0.148023]
[1724757647634,1.26821373,62586.0,62585.0,0.148023]
[1724757654362,0.60405301,62586.0,62585.0,0.148023]
[1724757655284,0.91261301,62586.0,62585.0,0.148023]
[1724757655497,0.89961301,62586.0,62585.0,0.148023]
[1724757655733,0.91161301,62586.0,62585.0,0.148023]
[1724757655948,0.90461301,62586.0,62585.0,0.148023]
[1724757656167,0.89961301,62586.0,62585.0,0.149023]
[1724757656378,0.89961301,62586.0,62585.0,0.151023]
[1724757658639,0.92465289,62586.0,62585.0,0.151023]
[1724757660272,0.92446058,62586.0,62585.0,0.151023]
[1724757664238,0.8994207,62586.0,62585.0,0.151023]
[1724757667456,0.92446232,62586.0,62585.0,0.151023]
[1724757671272,0.97229699,62586.0,62585.0,0.151023]
[1724757671499,0.92446232,62586.0,62585.0,0.151023]
[1724757673022,0.99633816,62586.0,62585.0,0.151023]
[1724757673235,0.92446232,62586.0,62585.0,0.151023]
[1724757673468,0.99633816,62586.0,62585.0,0.151023]
[1724757673736,0.92446232,62586.0,62585.0,0.151023]
[1724757673973,1.02029677,62586.0,62585.0,0.151023]
[1724757674194,0.99525515,62586.0,62585.0,0.151023]
[1724757674398,1.01921377,62586.0,62585.0,0.151023]
[1724757674866,1.01921377,62586.0,62585.0,0.003823]
[1724757674867,1.35303764,62586.0,62585.0,0.003823]
[1724757675753,1.49678932,62586.0,62585.0,0.001823]
[1724757675971,1.49678932,62586.0,62585.0,0.000823]
[1724757676187,1.49678932,62586.0,62585.0,0.001823]
[1724757676188,1.2189807,62586.0,62585.0,0.001823]
[1724757676410,0.9004207,62586.0,62585.0,0.148223]
[1724757677074,0.9014207,62586.0,62585.0,0.148223]
[1724757677292,1.04539881,62586.0,62585.0,0.148223]
[1724757677803,0.92646251,62586.0,62585.0,0.148223]
[1724757678264,0.92646251,62586.0,62585.0,0.147223]
[1724757678503,0.92646251,62586.0,62585.0,0.148223]
[1724757678725,1.07044062,62586.0,62585.0,0.148223]
[1724757679628,1.41005335,62586.0,62585.0,0.083423]
[1724757680088,1.07044062,62586.0,62585.0,0.083423]
[1724757680315,0.92646251,62586.0,62585.0,0.083423]
[1724757684361,0.9014207,62586.0,62585.0,0.083423]
[1724757687665,0.92646322,62586.0,62585.0,0.083423]
[1724757688112,1.24602322,62586.0,62585.0,0.001823]
[1724757688345,1.39001255,62586.0,62585.0,0.001823]
[1724757688800,1.41190012,62586.0,62585.0,0.001823]
[1724757689281,1.26791079,62586.0,62585.0,0.001823]
[1724757689732,1.41190012,62586.0,62585.0,0.001823]
[1724757690413,1.26791079,62586.0,62585.0,0.001823]
[1724757690923,1.24602322,62586.0,62585.0,0.001823]
[1724757691606,0.92646322,62586.0,62585.0,0.001823]
[1724757691836,0.92646322,62586.0,62585.0,0.079923]
[1724757694371,0.9014207,62586.0,62585.0,0.079923]
[1724757697628,0.92646152,62586.0,62585.0,0.079923]
[1724757702734,0.92626921,62586.0,62585.0,0.079923]
[1724757704219,0.90122839,62586.0,62585.0,0.079923]
[1724757707658,0.92626909,62586.0,62585.0,0.079923]
[1724757711002,1.13103279,62586.0,62585.0,0.001823]
[1724757711404,1.45059279,62586.0,62585.0,0.001823]
[1724757712999,1.31142909,62586.0,62585.0,0.001823]
[1724757713231,1.7929872,62586.0,62585.0,0.001823]
[1724757713457,1.47343696,62586.0,62585.0,0.001823]
[1724757714397,1.31142909,62586.0,62585.0,0.001823]
[1724757717220,1.63098909,62586.0,62585.0,0.001823]
[1724757717432,1.47034718,62586.0,62585.0,0.001823]
[1724757718311,1.63098909,62586.0,62585.0,0.001823]
[1724757719587,1.31142909,62586.0,62585.0,0.001823]
[1724757720261,1.63098909,62586.0,62585.0,0.001823]
[1724757723653,1.63098909,62586.0,62585.0,0.000823]
[1724757723888,1.62898909,62586.0,62585.0,0.000823]
[1724757724107,1.63498909,62586.0,62585.0,0.000823]
[1724757724330,1.64298909,62586.0,62585.0,0.000823]
[1724757724762,1.80190718,62586.0,62585.0,0.000823]
[1724757728562,1.64298909,62586.0,62585.0,0.000823]
[1724757732323,1.64298909,62586.0,62585.0,0.142223]
[1724757732324,1.57738909,62586.0,62585.0,0.142223]
[1724757732561,1.05817599,62586.0,62585.0,0.142223]
[1724757732785,1.03313529,62586.0,62585.0,0.142223]
[1724757733023,1.23278839,62586.0,62585.0,0.142223]
[1724757733464,1.36823898,62586.0,62585.0,0.142223]
[1724757733689,1.23278839,62586.0,62585.0,0.076823]
[1724757737491,1.32870363,62586.0,62585.0,0.076823]
[1724757739486,1.32870337,62586.0,62585.0,0.076823]
[1724757740578,1.35374597,62586.0,62585.0,0.076823]
[1724757743256,1.35374448,62586.0,62585.0,0.076823]
[1724757744315,1.32870188,62586.0,62585.0,0.076823]
[1724757745404,1.32870188,62586.0,62585.0,0.139523]
[1724757746051,1.00914188,62586.0,62585.0,0.139523]
[1724757746266,1.00894957,62586.0,62585.0,0.139523]
[1724757747659,1.03399,62586.0,62585.0,0.139523]
[1724757747897,0.23585616,62586.0,62585.0,0.64159374]
[1724757748112,0.13994573,62586.0,62585.0,0.16224674]
[1724757748777,0.13394573,62586.0,62585.0,0.16224674]
[1724757749011,0.12594573,62586.0,62585.0,0.16224674]
[1724757749235,0.12994573,62586.0,62585.0,0.16224674]
[1724757749688,0.02994573,62586.0,62585.0,0.16224674]
[1724757749937,0.02994573,62586.0,62585.0,0.32202874]
[1724757750174,0.02994573,62586.0,62585.0,1.12007683]
[1724757750385,0.0029053,62586.0,62585.0,1.46264183]
[1724757750612,0.0029053,62586.0,62585.0,1.46464183]
[1724757751783,0.0009053,62586.0,62585.0,1.46464183]
[1724757752037,0.0009053,62586.0,62585.0,1.46764183]
[1724757752038,0.0019053,62586.0,62585.0,1.46764183]
[1724757752248,0.0019053,62586.0,62585.0,1.46464183]
[1724757752485,0.0009053,62591.0,62590.0,0.00097561]
[1724757752708,0.0009053,62591.0,62590.0,1.20908851]
[1724757752927,0.0009053,62591.0,62590.0,1.52862751]
[1724757753137,0.0009053,62591.0,62590.0,1.55162751]
[1724757753616,0.0009053,62591.0,62590.0,1.7063754]
[1724757753852,0.0019053,62591.0,62590.0,1.71137041]
[1724757754316,0.0009053,62591.0,62590.0,1.68913658]
[1724757754536,0.0019053,62591.0,62590.0,1.69413658]
[1724757754758,0.0029053,62591.0,62590.0,1.69713658]
[1724757754985,0.0019053,62591.0,62590.0,1.69413658]
[1724757755420,0.0029053,62591.0,62590.0,1.69713658]
[1724757756308,0.0019053,62591.0,62590.0,1.69213658]
[1724757756522,0.0029053,62591.0,62590.0,1.69613658]
[1724757756734,0.0019053,62591.0,62590.0,1.69313658]
[1724757756948,0.0019053,62591.0,62590.0,1.28588318]
[1724757757225,0.0009053,62591.0,62590.0,1.36959758]
[1724757757443,0.0019053,62591.0,62590.0,1.37359758]
[1724757758541,0.0029053,62591.0,62590.0,1.37659758]
[1724757758752,0.0019053,62591.0,62590.0,1.37359758]
[1724757758960,0.0009053,62591.0,62590.0,1.36959758]
[1724757759177,0.0029053,62591.0,62590.0,1.37659758]
[1724757759615,0.0019053,62591.0,62590.0,1.37259758]
[1724757760102,0.0029053,62591.0,62590.0,1.37659758]
[1724757761889,0.0029053,62591.0,62590.0,1.69613658]
[1724757762616,0.0029053,62591.0,62590.0,1.69711219]
[1724757767398,0.0029053,62591.0,62590.0,1.69613658]
[1724757768551,0.0029053,62591.0,62590.0,1.69711219]
[1724757769886,0.0029053,62591.0,62590.0,1.69613658]
[1724757770136,0.0029053,62591.0,62590.0,1.69711219]
[1724757777195,0.0029053,62591.0,62590.0,1.71434636]
[1724757777424,0.0029053,62591.0,62590.0,1.71434624]
[1724757780283,0.0029053,62591.0,62590.0,1.69711219]
[1724757780671,0.0029053,62591.0,62590.0,1.71434243]
[1724757781668,0.0029053,62591.0,62590.0,1.71336682]
[1724757781879,0.0029053,62591.0,62590.0,1.71434243]
[1724757782513,0.0029053,62591.0,62590.0,1.69711219]
[1724757782742,0.0029053,62591.0,62590.0,1.71434447]
[1724757784699,0.0029053,62591.0,62590.0,1.71336886]
[1724757785366,0.0029053,62591.0,62590.0,1.71434447]
[1724757786427,0.0029053,62591.0,62590.0,1.71434201]
[1724757787486,0.0029053,62591.0,62590.0,1.69711219]
[1724757788057,0.002713,62591.0,62590.0,1.69711219]
[1724757788638,0.002713,62591.0,62590.0,1.71434401]
[1724757789494,0.002713,62591.0,62590.0,1.69711219]
[1724757793131,0.002713,62591.0,62590.0,1.71434276]
[1724757793555,0.002713,62591.0,62590.0,1.69711219]
[1724757798435,0.002713,62591.0,62590.0,1.74477388]
[1724757799719,0.002713,62591.0,62590.0,1.74379827]
[1724757800353,0.002713,62591.0,62590.0,1.68109827]
[1724757801643,0.002713,62591.0,62590.0,1.63343658]
[1724757802134,0.002713,62591.0,62590.0,1.68109827]
[1724757802577,0.002713,62591.0,62590.0,1.60159827]
[1724757802773,0.002713,62591.0,62590.0,1.60162528]
[1724757804545,0.002713,62591.0,62590.0,1.57862528]
[1724757804973,0.002713,62591.0,62590.0,1.17137188]
[1724757805434,0.002713,62591.0,62590.0,1.25908628]
[1724757806522,0.002713,62591.0,62590.0,1.33968628]
[1724757807780,0.002713,62591.0,62590.0,1.33967735]
[1724757809105,0.002713,62591.0,62590.0,1.65921635]
[1724757809579,0.002713,62591.0,62590.0,1.74251635]
[1724757810823,0.002713,62591.0,62590.0,1.74333935]
[1724757812593,0.002713,62591.0,62590.0,1.74332504]
[1724757816324,0.002713,62591.0,62590.0,1.65561064]
[1724757816546,0.002713,62591.0,62590.0,1.59531064]
[1724757816768,0.002713,62591.0,62590.0,1.68302504]
[1724757820724,0.002713,62591.0,62590.0,1.63535958]
[1724757825368,0.002713,62591.0,62590.0,1.69965958]
[1724757826864,0.002713,62591.0,62590.0,1.63535958]
[1724757830011,0.002713,62591.0,62590.0,1.68302866]
[1724757830225,0.002713,62591.0,62590.0,1.74820427]
[1724757830441,0.002713,62591.0,62590.0,1.70053519]
[1724757830901,0.002713,62591.0,62590.0,2.37458458]
[1724757831110,0.002713,62591.0,62590.0,2.4460882]
[1724757831377,0.002713,62591.0,62590.0,2.38947809]
[1724757831579,0.002713,62591.0,62590.0,2.40139224]
[1724757831784,0.001713,62591.0,62590.0,2.39739224]
[1724757832017,0.000713,62591.0,62590.0,2.50157595]
[1724757832225,0.002713,62591.0,62590.0,2.37456405]
[1724757832444,0.002713,62591.0,62590.0,2.15029705]
[1724757832656,0.001713,62591.0,62590.0,2.14729705]
[1724757832868,0.002713,62591.0,62590.0,2.15029705]
[1724757833084,0.002713,62591.0,62590.0,2.1234958]
[1724757833523,0.003713,62591.0,62590.0,2.05502505]
[1724757833730,0.002713,62591.0,62590.0,2.12349169]
[1724757833966,0.002713,62591.0,62590.0,2.03577729]
[1724757834189,0.002713,62591.0,62590.0,2.11949169]
[1724757834190,0.001713,62591.0,62590.0,2.11949169]
[1724757834408,0.001713,62591.0,62590.0,2.13349169]
[1724757835065,0.001713,62591.0,62590.0,1.72153519]
[1724757835315,0.001713,62591.0,62590.0,1.63284518]
[1724757835525,0.001713,62591.0,62590.0,1.69000603]
[1724757835736,0.001713,62591.0,62590.0,1.70400603]
[1724757837013,0.001713,62591.0,62590.0,1.70400755]
[1724757837249,0.001713,62591.0,62590.0,1.62340755]
[1724757838608,0.001713,62591.0,62590.0,1.57575958]
[1724757841376,0.00152071,62591.0,62590.0,1.48804518]
[1724757841574,0.00152071,62591.0,62590.0,1.25922058]
[1724757841774,0.14122071,62591.0,62590.0,0.19074109]
[1724757842001,0.14122071,62591.0,62590.0,0.27845549]
[1724757842208,0.14122071,62591.0,62590.0,0.191592]
[1724757842422,0.14122071,62591.0,62590.0,0.5988454]
[1724757843462,0.14022071,62591.0,62590.0,0.5708454]
[1724757843658,0.14122071,62591.0,62590.0,0.5848454]
[1724757843855,0.14122071,62591.0,62590.0,0.70834769]
[1724757845000,0.14122071,62591.0,62590.0,0.72234769]
[1724757845001,0.14222071,62591.0,62590.0,0.72234769]
[1724757845218,0.06462071,62591.0,62590.0,0.72234769]
[1724757845889,0.06462071,62591.0,62590.0,0.71934769]
[1724757846110,0.06462071,62591.0,62590.0,0.72234769]
[1724757846318,0.06462071,62591.0,62590.0,1.30430478]
[1724757846319,0.00252071,62591.0,62590.0,1.30430478]
[1724757846534,0.00252071,62591.0,62590.0,1.62384378]
[1724757847788,0.00252071,62591.0,62590.0,1.54034378]
[1724757848210,0.00252071,62591.0,62590.0,1.54334378]
[1724757848618,0.00252071,62591.0,62590.0,0.63463329]
[1724757848834,0.00252071,62591.0,62590.0,0.72234769]
[1724757850793,0.00252071,62591.0,62590.0,1.27430478]
[1724757850986,0.00252071,62591.0,62590.0,1.30030478]
[1724757851209,0.00252071,62591.0,62590.0,1.61984378]
[1724757851419,0.00252071,62591.0,62590.0,1.30030478]
[1724757851809,0.00252071,62591.0,62590.0,1.61984378]
[1724757853344,0.00252071,62591.0,62590.0,1.53212938]
[1724757853557,0.00252071,62591.0,62590.0,1.61684378]
[1724757853807,0.00252071,62591.0,62590.0,1.61984378]
[1724757854012,0.00252071,62591.0,62590.0,1.61684378]
[1724757855122,0.00252071,62591.0,62590.0,1.61984378]
[1724757855579,0.00252071,62591.0,62590.0,1.61684378]
[1724757856458,0.00252071,62591.0,62590.0,1.61984378]
[1724757856677,0.00252071,62591.0,62590.0,1.61684378]
[1724757856898,0.00252071,62591.0,62590.0,1.61984378]
[1724757858219,0.00252071,62591.0,62590.0,1.63708645]
[1724757859138,0.00252071,62591.0,62590.0,1.63506206]
[1724757859366,0.00252071,62591.0,62590.0,1.69806206]
[1724757859849,0.00252071,62591.0,62590.0,2.01760106]
[1724757860739,0.00252071,62591.0,62590.0,2.06528086]
[1724757860986,0.00252071,62591.0,62590.0,2.01760106]
[1724757861589,0.00252071,62591.0,62590.0,2.08911748]
[1724757861794,0.00252071,62591.0,62590.0,2.01760106]
[1724757862005,0.00252071,62591.0,62590.0,2.08911748]
[1724757862283,0.00252071,62591.0,62590.0,2.01760106]
[1724757862464,0.00252071,62591.0,62590.0,2.01760238]
[1724757863131,0.00252071,62591.0,62590.0,2.54361771]
[1724757863346,0.00252071,62591.0,62590.0,2.1891188]
[1724757863793,0.00252071,62591.0,62590.0,2.54361649]
[1724757864026,0.0658,62605.0,62604.0,0.319468]
[1724757864254,0.0009053,62607.0,62606.0,0.159729]
[1724757864501,0.0009053,62607.0,62606.0,0.32184129]
[1724757864718,0.0009053,62607.0,62606.0,0.96075729]
[1724757865638,0.0009053,62607.0,62606.0,0.96475729]
[1724757865877,0.0009053,62607.0,62606.0,1.08825958]
[1724757866360,0.0009053,62607.0,62606.0,1.08425958]
[1724757866584,0.0009053,62607.0,62606.0,1.12125958]
[1724757866585,0.0019053,62607.0,62606.0,1.12125958]
[1724757866802,0.0019053,62607.0,62606.0,1.44071758]
[1724757867040,0.0029053,62607.0,62606.0,1.45471758]
[1724757868407,0.0029053,62607.0,62606.0,1.46871758]
[1724757870024,0.0029053,62607.0,62606.0,0.80360738]
[1724757870239,0.1393053,62607.0,62606.0,0.89132178]
[1724757875090,0.1393053,62607.0,62606.0,0.57186378]
[1724757875335,0.1393053,62607.0,62606.0,0.89132178]
[1724757877904,0.1393053,62607.0,62606.0,0.57186378]
[1724757878342,0.1393053,62607.0,62606.0,0.44836149]
[1724757878556,0.1393053,62607.0,62606.0,0.28863249]
[1724757878989,0.9379373,62607.0,62606.0,0.042]
[1724757879606,0.6184843,62607.0,62606.0,0.1297144]
[1724757880137,0.1393053,62607.0,62606.0,0.15865954]
[1724757880576,0.1393053,62607.0,62606.0,0.14465954]
[1724757880577,0.1383053,62607.0,62606.0,0.14465954]
[1724757881924,0.1373053,62607.0,62606.0,0.11665954]
[1724757882130,0.1373053,62607.0,62606.0,0.12465954]
[1724757882353,0.1373053,62607.0,62606.0,0.13165954]
[1724757883478,0.1373053,62607.0,62606.0,0.29138854]
[1724757885013,0.1373053,62607.0,62606.0,0.13165954]
[1724757885676,0.1373053,62607.0,62606.0,0.29138854]
[1724757888088,0.1373053,62607.0,62606.0,0.13165954]
[1724757888522,0.1373053,62607.0,62606.0,0.29138854]
[1724757889196,0.1373053,62607.0,62606.0,0.61084654]
[1724757889424,0.1373053,62607.0,62606.0,0.13165954]
[1724757889665,0.1373053,62607.0,62606.0,0.1027144]
[1724757890784,0.1373053,62607.0,62606.0,0.2624434]
[1724757891911,0.1373053,62607.0,62606.0,0.1027144]
[1724757892371,0.2970313,62607.0,62606.0,0.1027144]
[1724757893233,0.6164843,62607.0,62606.0,0.1027144]
[1724757893888,0.6164843,62607.0,62606.0,0.015]
[1724757893889,1.35148569,62607.0,62606.0,0.015]
[1724757894130,1.2553903,62607.0,62606.0,0.015]
[1724757894357,1.32720173,62607.0,62606.0,0.015]
[1724757894561,1.2553903,62607.0,62606.0,0.015]
[1724757894773,1.2553903,62607.0,62606.0,0.007]
[1724757894989,1.35120803,62607.0,62606.0,0.007]
[1724757895213,1.35120803,62607.0,62606.0,0.005]
[1724757895686,0.1458,62597.0,62596.0,0.0877144]
[1724757895907,0.14560771,62597.0,62596.0,0.0877144]
[1724757896560,0.08863981,62597.0,62596.0,0.0877144]
[1724757897233,0.08863981,62597.0,62596.0,0.0977144]
[1724757899418,0.08863981,62597.0,62596.0,0.1067144]
[1724757900640,0.08863981,62597.0,62596.0,0.2664684]
[1724757901063,0.08863981,62597.0,62596.0,0.5859774]
[1724757901284,0.08863981,62597.0,62596.0,1.59457338]
[1724757901285,0.0250321,62597.0,62596.0,1.59457338]
[1724757901491,0.24153,62606.0,62596.0,1.59457338]
[1724757901492,0.15973,62606.0,62602.0,0.159738]
[1724757901713,0.15973,62606.0,62605.0,0.0877144]
[1724757902130,0.18476047,62606.0,62605.0,0.0877144]
[1724757902564,0.02503047,62606.0,62605.0,0.0877144]
[1724757902787,0.18475947,62606.0,62605.0,0.0877144]
[1724757902992,0.02603047,62606.0,62605.0,0.0877144]
[1724757903863,0.02603047,62606.0,62605.0,0.5669084]
[1724757904071,0.02603047,62606.0,62605.0,0.34364344]
[1724757905163,0.02603047,62606.0,62605.0,0.98356944]
[1724757905372,0.02503047,62606.0,62605.0,0.8873714]
[1724757905596,0.02503047,62606.0,62605.0,0.8863714]
[1724757905830,0.02503047,62606.0,62605.0,0.8973714]
[1724757906087,0.02593577,62606.0,62605.0,1.01273854]
[1724757906513,0.02593577,62606.0,62605.0,1.00173854]
[1724757906942,0.02593577,62606.0,62605.0,1.01573854]
[1724757908487,0.02593577,62606.0,62605.0,1.00373854]
[1724757908734,0.02593577,62606.0,62605.0,1.01773854]
[1724757909379,0.0009053,62606.0,62605.0,1.01773854]
[1724757909583,0.0009053,62606.0,62605.0,1.09553854]
[1724757917703,0.0009053,62606.0,62605.0,1.57391963]
[1724757917928,0.0009053,62606.0,62605.0,1.63701963]
[1724757918137,0.0009053,62606.0,62605.0,1.99677317]
[1724757920221,0.0009053,62606.0,62605.0,1.99677808]
[1724757920904,0.0009053,62606.0,62605.0,1.99677812]
[1724757921395,0.0009053,62606.0,62605.0,1.67731512]
[1724757922288,0.0009053,62606.0,62605.0,1.61421512]
[1724757922531,0.0009053,62606.0,62605.0,1.59121512]
[1724757922760,0.0009053,62606.0,62605.0,0.9143714]
[1724757922980,0.0009053,62606.0,62605.0,0.5949084]
[1724757923197,0.0009053,62606.0,62605.0,0.9143714]
[1724757923422,0.0009053,62606.0,62605.0,0.5949084]
[1724757923644,0.0009053,62606.0,62605.0,0.69393724]
[1724757924118,0.0009053,62606.0,62605.0,1.01340024]
[1724757924358,0.0009053,62606.0,62605.0,0.69393724]
[1724757927403,0.0009053,62606.0,62605.0,1.01340024]
[1724757931663,0.0009053,62606.0,62605.0,0.69393724]
[1724757932299,0.0009053,62606.0,62605.0,1.01340024]
[1724757933394,0.0009053,62606.0,62605.0,0.69393724]
[1724757933880,0.0009053,62606.0,62605.0,1.01340024]
[1724757937413,0.00071303,62606.0,62605.0,1.01340024]
[1724757937634,0.00071303,62606.0,62605.0,0.69393724]
[1724757937865,0.00071303,62606.0,62605.0,1.01340024]
[1724757938361,0.00071303,62606.0,62605.0,0.92568584]
[1724757938563,0.00071303,62606.0,62605.0,1.01340024]
[1724757941393,0.00071303,62606.0,62605.0,0.69393724]
[1724757941614,0.00071303,62606.0,62605.0,1.01340024]
[1724757944083,0.00071303,62606.0,62605.0,0.69393724]
[1724757944799,0.00071303,62606.0,62605.0,1.01340024]
[1724757945012,0.00071303,62606.0,62605.0,0.69393724]
[1724757945727,0.00071303,62606.0,62605.0,1.01340024]
[1724757945952,0.00071303,62606.0,62605.0,0.77113724]
[1724757946384,0.00071303,62606.0,62605.0,1.09060024]
[1724757949441,0.00071303,62606.0,62605.0,1.10789217]
[1724757950111,0.00071303,62606.0,62605.0,1.09060024]
[1724757950334,0.00071303,62606.0,62605.0,1.10789284]
[1724757950550,0.00071303,62606.0,62605.0,1.09060024]
[1724757951065,0.00071303,62606.0,62605.0,1.01340024]
[1724757951481,0.00071303,62606.0,62605.0,1.03069393]
[1724757954087,0.00071303,62606.0,62605.0,1.03151693]
[1724757954299,0.00071303,62606.0,62605.0,1.01422324]
[1724757954522,0.00071303,62606.0,62605.0,1.03151705]
[1724757954966,0.00071303,62606.0,62605.0,1.01422324]
[1724757955862,0.00071303,62606.0,62605.0,1.03151688]
[1724757956076,0.00071303,62606.0,62605.0,1.01422324]
[1724757956286,0.00071303,62606.0,62605.0,1.03151695]
[1724757957580,0.00071303,62606.0,62605.0,1.01422324]
[1724757957788,0.00071303,62606.0,62605.0,1.03151619]
[1724757959382,0.00071303,62606.0,62605.0,1.03151666]
[1724757959584,0.00071303,62606.0,62605.0,1.031516]
[1724757960306,0.00071303,62606.0,62605.0,0.712053]
[1724757960521,0.00071303,62606.0,62605.0,1.031516]
[1724757960745,0.00071303,62606.0,62605.0,1.03151551]
[1724757964369,0.00071303,62606.0,62605.0,1.03150328]
[1724757965833,0.00071303,62606.0,62605.0,1.04088054]
[1724757966055,0.00071303,62606.0,62605.0,1.12278054]
[1724757966278,0.00071303,62606.0,62605.0,1.34529863]
[1724757966509,0.00071303,62606.0,62605.0,1.66476435]
[1724757970700,0.02502559,62610.0,62609.0,0.319442]
[1724757970937,0.02502559,62610.0,62609.0,1.32700353]
[1724757971160,0.54907729,62623.0,62609.0,1.32700353]
[1724757971161,0.52508486,62623.0,62620.0,0.0877144]
[1724757971401,0.04798486,62624.0,62623.0,0.159685]
[1724757971611,0.15960226,62626.0,62624.0,0.159683]
[1724757972282,0.04795048,62625.0,62624.0,0.159683]
[1724757972729,0.04795048,62625.0,62624.0,0.87455246]
[1724757972941,0.07197729,62627.0,62626.0,0.159678]
[1724757972942,0.04795048,62627.0,62626.0,0.159678]
[1724757973160,0.04795048,62628.0,62627.0,0.159675]
[1724757973379,0.0651,62632.0,62631.0,0.159665]
[1724757973607,0.54185426,62632.0,62631.0,0.5667094]
[1724757973875,0.54185426,62632.0,62627.0,0.0877144]
[1724757973876,0.0651,62630.0,62627.0,0.0877144]
[1724757974109,0.0651,62630.0,62628.0,0.159672]
[1724757975420,0.0651,62630.0,62628.0,0.167672]
[1724757975640,0.0651,62630.0,62628.0,0.173672]
[1724757977671,0.0651,62630.0,62628.0,0.014]
[1724757978294,0.2256733,62630.0,62628.0,0.014]
[1724757979161,0.0660053,62630.0,62628.0,0.014]
[1724757979803,0.2256733,62630.0,62628.0,0.014]
[1724757980256,0.0660053,62630.0,62628.0,0.014]
[1724757982029,0.0660053,62630.0,62628.0,0.173672]
[1724757982235,0.0660053,62630.0,62629.0,0.15967]
[1724757982450,0.0660053,62630.0,62629.0,0.57715894]
[1724757982451,0.0009053,62630.0,62629.0,0.57715894]
[1724757982882,0.0009053,62630.0,62629.0,0.89649894]
[1724757983100,0.0009053,62630.0,62629.0,0.97599894]
[1724757983323,0.0009053,62630.0,62629.0,1.45425703]
[1724757983746,0.0009053,62630.0,62629.0,1.46225703]
[1724757985355,0.0009053,62630.0,62629.0,1.52615703]
[1724757985597,0.0009053,62630.0,62629.0,1.54915703]
[1724757985818,0.0009053,62630.0,62629.0,1.55515703]
[1724757986264,0.0009053,62630.0,62629.0,1.87449703]
[1724757986487,0.0009053,62630.0,62629.0,1.86849703]
[1724757986916,0.0009053,62630.0,62629.0,1.88249703]
[1724757987136,0.0009053,62630.0,62629.0,1.87449703]
[1724757987352,0.0009053,62630.0,62629.0,1.88849703]
[1724757988058,0.0009053,62630.0,62629.0,1.90575357]
[1724757988500,0.0009053,62630.0,62629.0,1.87449703]
[1724757989142,0.0009053,62630.0,62629.0,1.88849703]
[1724757990071,0.0009053,62630.0,62629.0,1.90575398]
[1724757990290,0.0009053,62630.0,62629.0,1.87449703]
[1724757990514,0.0009053,62630.0,62629.0,1.88849703]
[1724757992073,0.0009053,62630.0,62629.0,1.24981703]
[1724757992281,0.0009053,62630.0,62629.0,1.27363143]
[1724757992495,0.0009053,62630.0,62629.0,1.59297143]
[1724757992943,0.0009053,62630.0,62629.0,1.57897143]